fUSD/lending_fUSD_20250607
["ID","MTS","AMOUNT","RATE_DAILY","PERIOD"]
[364846568,1749274232264,-500.0,0.00019999,2]
[364846570,1749274232276,-500.0,0.00019999,2]
[364846571,1749274232290,-500.0,0.00019999,2]
[364846573,1749274232305,-500.0,0.00019999,2]
[364846575,1749274232320,-338.13840305,0.00019999,2]
[364846578,1749274233040,-161.86159695,0.00019999,2]
[364846579,1749274233053,-500.0,0.00019999,2]
[364846580,1749274233065,-461.31994154,0.00019999,2]
[364846581,1749274233081,-38.68005846,0.00019999,2]
[364846582,1749274233095,-356.81227227,0.00019999,2]
[364846583,1749274233108,-380.03493728,0.00019999,2]
[364846584,1749274233121,-164.29330393,0.00019999,2]
[364846585,1749274233137,-335.70669607,0.00019999,2]
[364846586,1749274233149,-281.46672403,0.00019999,2]
[364846587,1749274233161,-500.0,0.00019999,2]
[364846588,1749274233174,-500.0,0.00019999,2]
[364846589,1749274233188,-500.0,0.00019999,2]
[364846590,1749274233200,-500.0,0.00019999,2]
[364846591,1749274233214,-500.0,0.00019999,2]
[364846592,1749274233227,-500.0,0.00019999,2]
[364846593,1749274233240,-500.0,0.00019999,2]
[364846594,1749274233253,-500.0,0.00019999,2]
[364846595,1749274233266,-500.0,0.00019999,2]
[364846596,1749274233279,-500.0,0.00019999,2]
[364846597,1749274233291,-500.0,0.00019999,2]
[364846598,1749274233304,-500.0,0.00019999,2]
[364846599,1749274233317,-500.0,0.00019999,2]
[364846600,1749274233331,-500.0,0.00019999,2]
[364846601,1749274233345,-500.0,0.00019999,2]
[364846602,1749274233358,-500.0,0.00019999,2]
[364846603,1749274233370,-500.0,0.00019999,2]
[364846604,1749274233384,-500.0,0.00019999,2]
[364846605,1749274233397,-500.0,0.00019999,2]
[364846606,1749274233411,-500.0,0.00019999,2]
[364846607,1749274233421,-500.0,0.00019999,2]
[364846608,1749274233431,-500.0,0.00019999,2]
[364846609,1749274233442,-500.0,0.00019999,2]
[364846610,1749274233452,-500.0,0.00019999,2]
[364846611,1749274233461,-500.0,0.00019999,2]
[364846612,1749274233471,-500.0,0.00019999,2]
[364846613,1749274233481,-500.0,0.00019999,2]
[364846614,1749274233491,-500.0,0.00019999,2]
[364846615,1749274233501,-500.0,0.00019999,2]
[364846616,1749274233510,-500.0,0.00019999,2]
[364846617,1749274233520,-500.0,0.00019999,2]
[364846618,1749274233529,-500.0,0.00019999,2]
[364846619,1749274234072,-500.0,0.00019999,2]
[364846620,1749274234107,-500.0,0.00019999,2]
[364846621,1749274234117,-500.0,0.00019999,2]
[364846622,1749274234127,-500.0,0.00019999,2]
[364846623,1749274234137,-500.0,0.00019999,2]
[364846624,1749274234148,-500.0,0.00019999,2]
[364846625,1749274234157,-500.0,0.00019999,2]
[364846626,1749274234168,-500.0,0.00019999,2]
[364846627,1749274234178,-500.0,0.00019999,2]
[364846628,1749274234188,-500.0,0.00019999,2]
[364846629,1749274234199,-500.0,0.00019999,2]
[364846630,1749274234209,-500.0,0.00019999,2]
[364846631,1749274234221,-500.0,0.00019999,2]
[364846632,1749274234233,-500.0,0.00019999,2]
[364846633,1749274234243,-500.0,0.00019999,2]
[364846634,1749274234253,-500.0,0.00019999,2]
[364846635,1749274234264,-500.0,0.00019999,2]
[364846636,1749274234274,-500.0,0.00019999,2]
[364846637,1749274234284,-500.0,0.00019999,2]
[364846638,1749274234295,-500.0,0.00019999,2]
[364846639,1749274234305,-500.0,0.00019999,2]
[364846640,1749274234315,-500.0,0.00019999,2]
[364846641,1749274234326,-500.0,0.00019999,2]
[364846642,1749274234336,-500.0,0.00019999,2]
[364846643,1749274234346,-500.0,0.00019999,2]
[364846644,1749274234356,-500.0,0.00019999,2]
[364846645,1749274234366,-500.0,0.00019999,2]
[364846646,1749274234376,-500.0,0.00019999,2]
[364846647,1749274234387,-357.13518851,0.00019999,2]
[364846648,1749274234398,-500.0,0.00019999,2]
[364846649,1749274234408,-500.0,0.00019999,2]
[364846650,1749274234418,-500.0,0.00019999,2]
[364846651,1749274234428,-500.0,0.00019999,2]
[364846652,1749274234439,-36641.22005144,0.0002,2]
[364846653,1749274237848,-759.8695747,0.0002,2]
[364846654,1749274237864,-328.15699125,0.0002,2]
[364846655,1749274237902,-272428.71284732,0.0002,2]
[364846656,1749274237912,-235783.76564721,0.0002,2]
[364846657,1749274237922,-3803.486375,0.00020013,2]
[364846658,1749274237934,-500.0,0.00020026,2]
[364846659,1749274237945,-28986.6272309,0.00020052,2]
[364846660,1749274237955,-500.0,0.00020054,2]
[364846661,1749274237965,-152.3,0.00020056,2]
[364846662,1749274237976,-371408.8777991,0.00020066,2]
[364846663,1749274237987,-1046.7040497,0.00020066,2]
[364846664,1749274237999,-500.0,0.00020073,2]
[364846665,1749274238010,-361.89749755,0.00020073,2]
[364846666,1749274238021,-502.92355728,0.00020073,2]
[364846667,1749274238031,-266.03634696,0.00020073,2]
[364846668,1749274238042,-500.0,0.00020073,2]
[364846669,1749274238052,-501.27387106,0.00020073,2]
[364846670,1749274238062,-160.13082221,0.00020073,2]
[364846671,1749274238072,-501.46891278,0.00020073,2]
[364846672,1749274238081,-11471.3357373,0.0002008,2]
[364846673,1749274238097,-23647.4406277,0.0002008,2]
[364846674,1749274238107,-508.09502657,0.0002008,2]
[364846675,1749274238118,-500.0,0.00020081,2]
[364846676,1749274238128,-250.0,0.00020094,2]
[364846677,1749274238138,-573.52530558,0.00020109,2]
[364846678,1749274238149,-1680.19085984,0.0002015,2]
[364846679,1749274238159,-41416.8707816,0.00020174,2]
[364846680,1749274238170,-176.96,0.00020187,2]
[364846681,1749274238180,-1000.0,0.00020521,2]
[364846682,1749274238190,-1012.26318805,0.00020521,2]
[364846684,1749274238199,-1052.20293779,0.00020521,2]
[364846686,1749274238209,-1002.73531583,0.00020521,2]
[364846688,1749274238219,-500.0,0.00020621,2]
[364846690,1749274238230,-507.89602055,0.00020621,2]
[364846692,1749274238239,-15480.40958333,0.000207,2]
[364846694,1749274238250,-28536.50320159,0.00020722,2]
[364846696,1749274238260,-17310.72728086,0.00021,2]
[364846698,1749274238272,-1159.35063879,0.00021,2]
[364846701,1749274238283,-191.34507138,0.00021,2]
[364846703,1749274238292,-1500.0,0.00021068,2]
[364846704,1749274238302,-348.51027408,0.00021074,2]
[364846707,1749274238311,-243.103843,0.000215,2]
[364846709,1749274238321,-28536.50320159,0.00021544,2]
[364846710,1749274238331,-2000.0,0.00021616,2]
[364846713,1749274238341,-1445.16420011,0.00021617,2]
[364846715,1749274238350,-420.0,0.00021776,2]
[364846716,1749274238360,-420.0,0.00021776,2]
[364846719,1749274238370,-1680.0,0.0002188,2]
[364846721,1749274238380,-800.0,0.0002189,4]
[364846723,1749274238390,-206.0,0.00021938,2]
[364846725,1749274238400,-800.0,0.00021999,4]
[364846727,1749274238410,-250.0,0.00021999,2]
[364846729,1749274238420,-250.0,0.00022,2]
[364846731,1749274238430,-200.0,0.00022047,2]
[364846733,1749274238441,-2394.14,0.00022076,2]
[364846735,1749274238450,-2500.0,0.00022164,2]
[364846737,1749274238460,-348.51027408,0.00022248,2]
[364846739,1749274238471,-28536.50320159,0.00022366,2]
[364846741,1749274238481,-935.21233493,0.00022775,2]
[364846743,1749274238492,-20811.53,0.00022785,2]
[364846745,1749274238503,-738.58,0.00023085,2]
[364846747,1749274238512,-28536.50320159,0.00023188,2]
[364846749,1749274238522,-1445.16420011,0.00023253,2]
[364846752,1749274238541,-189.46,0.00023417,2]
[364846754,1749274238554,-348.51027408,0.00023422,2]
[364846756,1749274238564,-200.0,0.000235,2]
[364846759,1749274238575,-587.0,0.00023711,2]
[364846761,1749274238589,-587.0,0.00023711,2]
[364846763,1749274238600,-758.17983017,0.000239,10]
[364846764,1749274238610,-758.17982996,0.000239,10]
[364846765,1749274238620,-758.17982996,0.000239,10]
[364846766,1749274238629,-758.17982996,0.000239,10]
[364846767,1749274238639,-758.17982996,0.000239,10]
[364846768,1749274238650,-758.17982996,0.000239,10]
[364846769,1749274238660,-2351.0,0.0002394,2]
[364846770,1749274238671,-38220.32849391,0.00024,2]
[364846771,1749274238685,-990.28469784,0.00024,2]
[364846772,1749274238695,-22626.56,0.00024,5]
[364846773,1749274238705,-2643.90298483,0.00024,2]
[364846774,1749274238716,-28536.50320159,0.00024009,2]
[364846775,1749274238727,-150.0,0.00024165,2]
[364846776,1749274238737,-758.17982996,0.0002421,10]
[364846777,1749274238747,-150.0,0.00024403,2]
[364846779,1749274238757,-150.0,0.00024507,2]
[364846781,1749274238767,-348.51027408,0.00024597,2]
[364846783,1749274238777,-1000.0,0.00024658,2]
[364846785,1749274238787,-500.0,0.00024658,2]
[364846787,1749274238797,-500.0,0.00024658,2]
[364846789,1749274238806,-500.0,0.00024658,2]
[364846791,1749274238816,-500.0,0.00024658,2]
[364846793,1749274238827,-500.0,0.00024658,2]
[364846795,1749274238837,-500.0,0.00024658,2]
[364846797,1749274238846,-500.0,0.00024658,2]
[364846799,1749274238856,-500.0,0.00024658,2]
[364846801,1749274238866,-521.14579956,0.00024658,2]
[364846803,1749274238876,-183.46993692,0.00024658,2]
[364846805,1749274238886,-500.0,0.00024658,2]
[364846807,1749274238897,-500.0,0.00024658,2]
[364846809,1749274238908,-500.0,0.00024658,2]
[364846812,1749274238918,-500.0,0.00024658,2]
[364846814,1749274238928,-500.0,0.00024658,2]
[364846816,1749274238939,-500.0,0.00024658,2]
[364846818,1749274238948,-500.0,0.00024658,2]
[364846820,1749274238958,-500.0,0.00024658,2]
[364846822,1749274238967,-500.0,0.00024658,2]
[364846824,1749274238984,-150.0,0.0002466,2]
[364846826,1749274238995,-3649.46,0.00024707,2]
[364846828,1749274239005,-758.17982996,0.00024762,11]
[364846830,1749274239016,-150.0,0.00024783,2]
[364846833,1749274239026,-152.3,0.0002479,2]
[364846835,1749274239037,-213503.848726,0.000248,2]
[364846837,1749274239047,-1645.85,0.00024884,2]
[364846839,1749274239057,-1445.16420011,0.0002489,2]
[364846841,1749274239068,-24216.8022968,0.000249,2]
[364846843,1749274239078,-176.96,0.00024905,2]
[364846845,1749274239088,-254.0,0.00024932,7]
[364846847,1749274239099,-179.0,0.00024932,7]
[364846849,1749274239109,-150.0,0.00025,2]
[364846851,1749274239120,-254.0,0.00025,7]
[364846853,1749274239131,-179.0,0.00025,7]
[364846855,1749274239142,-885.96051979,0.00025,2]
[364846857,1749274239152,-150.0,0.00025028,2]
[364846859,1749274239163,-150.0,0.00025048,2]
[364846862,1749274239174,-150.0,0.000251,2]
[364846864,1749274239184,-150.0,0.00025135,2]
[364846866,1749274239195,-167.89,0.00025164,2]
[364846868,1749274239206,-150.0,0.0002517,2]
[364846870,1749274239217,-150.0,0.00025207,2]
[364846872,1749274239228,-2690.75581076,0.0002529,2]
[364846874,1749274239239,-150.0,0.00025294,2]
[364846876,1749274239250,-5106.66,0.000253,2]
[364846879,1749274239261,-758.17982996,0.00025314,12]
[364846881,1749274239271,-150.0,0.00025321,2]
[364846883,1749274239282,-738.58,0.00025349,2]
[364846885,1749274239293,-240.88,0.00025349,30]
[364846887,1749274239304,-150.0,0.00025353,2]
[364846889,1749274239314,-150.0,0.00025367,2]
[364846891,1749274239324,-150.0,0.0002538,2]
[364846893,1749274239335,-150.0,0.0002538,2]
[364846895,1749274239346,-206.0,0.00025399,7]
[364846896,1749274239357,-500.0,0.000254,2]
[364846898,1749274239367,-500.0,0.000254,2]
[364846900,1749274239378,-500.0,0.000254,2]
[364846902,1749274239389,-500.4878952,0.000254,2]
[364846905,1749274239405,-500.0,0.000254,2]
[364846907,1749274239416,-163.59111879,0.000254,2]
[364846909,1749274239427,-501.40776709,0.000254,2]
[364846911,1749274239438,-500.0,0.000254,2]
[364846913,1749274239448,-266.65153907,0.000254,2]
[364846915,1749274239459,-174.02092274,0.000254,2]
[364846917,1749274239470,-409.89721347,0.000254,2]
[364846919,1749274239482,-500.0,0.000254,2]
[364846921,1749274239492,-150.0,0.00025412,2]
[364846923,1749274239503,-150.0,0.00025431,2]
[364846925,1749274239514,-150.0,0.00025476,2]
[364846927,1749274239524,-150.0,0.00025483,2]
[364846929,1749274239535,-200.0,0.000255,2]
[364846931,1749274239546,-150.0,0.00025549,2]
[364846933,1749274239557,-1000.0,0.00025659,2]
[364846935,1749274239567,-150.0,0.00025667,2]
[364846938,1749274239580,-150.0,0.00025718,2]
[364846940,1749274239593,-348.51027408,0.00025771,2]
[364846942,1749274239605,-163.67,0.00025774,2]
[364846944,1749274239615,-340.92,0.00025778,2]
[364846946,1749274239627,-156.12,0.00025781,2]
[364846948,1749274239637,-150.0,0.00025781,2]
[364846950,1749274239648,-250.0,0.00025799,2]
[364846952,1749274239660,-823.0,0.00025819,2]
[364846954,1749274239670,-823.0,0.00025819,2]
[364846956,1749274239682,-176.96,0.00025839,2]
[364846958,1749274239692,-14233.5899151,0.00025841,2]
[364846960,1749274239703,-221.65,0.00025846,2]
[364846963,1749274239714,-152.0,0.00025851,3]
[364846964,1749274239724,-150.0,0.00025863,2]
[364846967,1749274239734,-758.17982996,0.00025866,14]
[364846969,1749274239746,-150.0,0.00025876,2]
[364846971,1749274239757,-151.0,0.00025881,2]
[364846973,1749274239767,-151.0,0.00025881,2]
[364846974,1749274239778,-5381.51162152,0.0002589,2]
[364846976,1749274239789,-254.0,0.0002589,7]
[364846977,1749274239800,-179.0,0.0002589,7]
[364846978,1749274239810,-151.0,0.000259,2]
[364846979,1749274239821,-1000.0,0.000259,2]
[364846980,1749274239831,-152.44457682,0.000259,2]
[364846981,1749274239842,-157.82470807,0.000259,2]
[364846982,1749274239853,-1957.856,0.000259,2]
[364846983,1749274239863,-500.0,0.000259,2]
[364846984,1749274240171,-500.0,0.000259,2]
[364846985,1749274240200,-500.0,0.000259,2]
[364846986,1749274240210,-500.0,0.000259,2]
[364846987,1749274240220,-500.0,0.000259,2]
[364846988,1749274240231,-151.72516784,0.000259,2]
[364846989,1749274240242,-500.0,0.000259,2]
[364846990,1749274240252,-500.0,0.000259,2]
[364846991,1749274240263,-151.0,0.000259,2]
[364846992,1749274240273,-500.0,0.000259,2]
[364846993,1749274240283,-500.0,0.000259,2]
[364846994,1749274240294,-500.0,0.000259,2]
[364846995,1749274240304,-500.0,0.000259,2]
[364846996,1749274240315,-500.0,0.000259,2]
[364846997,1749274240325,-500.0,0.000259,2]
[364846998,1749274240335,-500.0,0.000259,2]
[364846999,1749274240346,-151.0,0.000259,2]
[364847000,1749274240356,-500.0,0.000259,2]
[364847001,1749274240366,-500.0,0.000259,2]
[364847002,1749274240376,-393.375038,0.000259,2]
[364847003,1749274240386,-500.0,0.000259,2]
[364847004,1749274240396,-668.65185757,0.000259,2]
[364847005,1749274240406,-500.0,0.000259,2]
[364847006,1749274240415,-500.0,0.000259,2]
[364847007,1749274240425,-500.0,0.000259,2]
[364847008,1749274240435,-500.0,0.000259,2]
[364847009,1749274240445,-500.0,0.000259,2]
[364847010,1749274240456,-500.0,0.000259,2]
[364847011,1749274240466,-500.0,0.000259,2]
[364847012,1749274240475,-500.0,0.000259,2]
[364847013,1749274240485,-500.0,0.000259,2]
[364847014,1749274240495,-500.0,0.000259,2]
[364847015,1749274240505,-300.0,0.000259,2]
[364847016,1749274240515,-500.0,0.000259,2]
[364847018,1749274240524,-300.0,0.000259,2]
[364847020,1749274240533,-300.0,0.000259,2]
[364847022,1749274240543,-300.0,0.000259,2]
[364847023,1749274240552,-300.0,0.000259,2]
[364847024,1749274240561,-300.0,0.000259,2]
[364847025,1749274240571,-300.0,0.000259,2]
[364847026,1749274240581,-300.0,0.000259,2]
[364847027,1749274240592,-300.0,0.000259,2]
[364847028,1749274240601,-269.62050543,0.000259,2]
[364847029,1749274240610,-207.4,0.000259,2]
[364847030,1749274240620,-151.0,0.00025936,2]
[364847031,1749274240629,-503.04412446,0.00025948,2]
[364847032,1749274240639,-501.75925322,0.00025948,2]
[364847033,1749274240648,-521.76990781,0.00025948,2]
[364847034,1749274240658,-154.89850209,0.00025948,2]
[364847035,1749274240668,-502.45705283,0.00025948,2]
[364847036,1749274240677,-504.39927176,0.00025948,2]
[364847037,1749274240687,-2030.296672,0.00025955,2]
[364847038,1749274240696,-150.0,0.00025988,2]
[364847039,1749274240705,-582.34537599,0.0002599,2]
[364847040,1749274240715,-1424.26500799,0.00026,2]
[364847041,1749274240725,-309.62651435,0.00026,2]
[364847042,1749274240735,-2105.41764886,0.0002601,2]
[364847043,1749274240744,-500.0,0.00026012,2]
[364847044,1749274240754,-500.0,0.00026012,2]
[364847045,1749274240763,-28467.1798301,0.00026018,2]
[364847046,1749274240773,-5381.51162152,0.00026018,2]
[364847047,1749274240782,-152.3,0.00026018,2]
[364847048,1749274240793,-30000.0,0.00026028,2]
[364847049,1749274240804,-552.97,0.00026031,2]
[364847050,1749274240813,-500.0,0.00026039,2]
[364847051,1749274240823,-500.0,0.00026039,2]
[364847052,1749274240832,-2283.02943803,0.00026065,2]
[364847053,1749274240842,-500.0,0.00026067,2]
[364847054,1749274240851,-500.0,0.00026067,2]
[364847055,1749274240861,-150.0,0.00026078,2]
[364847056,1749274240871,-500.0,0.00026094,2]
[364847057,1749274240881,-500.0,0.00026094,2]
[364847058,1749274240892,-150.0,0.00026104,2]
[364847059,1749274240902,-500.0,0.00026122,2]
[364847060,1749274240911,-500.0,0.00026122,2]
[364847061,1749274240921,-500.0,0.00026149,2]
[364847062,1749274240931,-500.0,0.00026149,2]
[364847063,1749274240940,-150.0,0.00026158,2]
[364847064,1749274240950,-500.0,0.00026176,2]
[364847065,1749274240960,-500.0,0.00026176,2]
[364847066,1749274240969,-150.0,0.0002619,2]
[364847067,1749274240979,-909.08,0.00026192,2]
[364847068,1749274240988,-3292.0,0.00026193,2]
[364847069,1749274240998,-3341.2207436,0.000262,2]
[364847070,1749274241008,-708.24,0.000262,2]
[364847071,1749274241018,-354.34,0.000262,2]
[364847072,1749274241028,-500.0,0.00026204,2]
[364847073,1749274241038,-500.0,0.00026204,2]
[364847074,1749274241047,-150.0,0.00026207,2]
[364847075,1749274241057,-150.0,0.00026213,2]
[364847076,1749274241068,-500.0,0.00026231,2]
[364847077,1749274241077,-500.0,0.00026231,2]
[364847078,1749274241087,-150.0,0.00026246,2]
[364847079,1749274241097,-279.09263784,0.00026259,2]
[364847080,1749274241107,-500.0,0.00026259,2]
[364847081,1749274241116,-150.0,0.00026281,2]
[364847082,1749274241126,-500.0,0.00026286,2]
[364847083,1749274241136,-500.0,0.000263,2]
[364847084,1749274241146,-170.32173904,0.000263,2]
[364847085,1749274241156,-504.26120495,0.000263,2]
[364847086,1749274241166,-500.0,0.00026313,2]
[364847087,1749274241176,-1352.81762887,0.00026329,30]
[364847088,1749274241186,-500.0,0.00026341,2]
[364847089,1749274241196,-240.37359258,0.00026368,2]
[364847090,1749274241205,-150.0,0.0002639,2]
[364847091,1749274241215,-150.0,0.00026391,2]
[364847092,1749274241224,-921.88,0.00026406,2]
[364847093,1749274241234,-920.9,0.00026408,2]
[364847094,1749274241243,-150.0,0.00026411,2]
[364847095,1749274241252,-758.17982996,0.00026417,15]
[364847096,1749274241262,-150.0,0.00026419,2]
[364847097,1749274241271,-150.0,0.00026441,2]
[364847098,1749274241281,-150.0,0.00026441,2]
[364847099,1749274241290,-150.96943052,0.00026441,2]
[364847100,1749274241300,-150.0,0.00026441,2]
[364847101,1749274241309,-150.0,0.00026441,2]
[364847102,1749274241319,-151.0,0.00026448,2]
[364847103,1749274241328,-150.0,0.00026456,2]
[364847104,1749274241337,-2690.75581076,0.00026457,2]
[364847105,1749274241347,-150.0,0.00026467,2]
[364847106,1749274241356,-150.0,0.00026468,2]
[364847107,1749274241366,-150.0,0.00026468,2]
[364847108,1749274241375,-150.55132188,0.00026468,2]
[364847109,1749274241386,-150.0,0.00026496,2]
[364847110,1749274241397,-150.0,0.00026496,2]
[364847111,1749274241406,-150.0,0.00026496,2]
[364847112,1749274241416,-150.0,0.00026499,2]
[364847113,1749274241426,-1000.0,0.000265,9]
[364847114,1749274241435,-201.21113638,0.00026523,2]
[364847115,1749274241445,-150.0,0.00026523,2]
[364847116,1749274241455,-1445.16420011,0.00026526,2]
[364847117,1749274241464,-150.0,0.00026551,2]
[364847118,1749274241474,-150.98544314,0.00026575,30]
[364847119,1749274241483,-158.46912684,0.00026575,30]
[364847120,1749274241493,-176.0067784,0.00026575,30]
[364847121,1749274241503,-178.49168584,0.00026578,2]
[364847122,1749274241512,-28467.1798301,0.00026589,2]
[364847123,1749274241522,-8072.26743228,0.00026589,2]
[364847124,1749274241533,-150.0,0.0002659,2]
[364847125,1749274241542,-1000.0,0.0002659,2]
[364847126,1749274241552,-2690.75581076,0.0002659,2]
[364847127,1749274241562,-2000.0,0.000266,2]
[364847128,1749274241571,-967.22827592,0.000266,2]
[364847129,1749274241585,-160.90331577,0.000266,2]
[364847130,1749274241595,-2100.0,0.000266,9]
[364847131,1749274241604,-150.0,0.00026608,2]
[364847132,1749274241615,-150.0,0.00026633,2]
[364847133,1749274241626,-14233.5899151,0.00026663,2]
[364847134,1749274241636,-500.0,0.00026673,2]
[364847135,1749274241647,-159.81357408,0.00026673,2]
[364847136,1749274241657,-500.43339217,0.00026673,2]
[364847137,1749274241667,-359.6059757,0.00026673,2]
[364847138,1749274241678,-437.40170607,0.00026673,2]
[364847139,1749274241688,-501.1470255,0.00026673,2]
[364847140,1749274241700,-176.96,0.00026676,2]
[364847141,1749274241710,-2690.75581076,0.00026679,2]
[364847142,1749274241720,-176.0067784,0.00026685,30]
[364847143,1749274241731,-151.0,0.00026689,7]
[364847144,1749274241741,-2276.87113,0.0002669,2]
[364847145,1749274241753,-28467.1798301,0.0002669,2]
[364847146,1749274241763,-24216.8022968,0.0002669,2]
[364847147,1749274241774,-150.0,0.00026695,2]
[364847148,1749274241783,-138033.47446843,0.000267,2]
[364847149,1749274241795,-3200.0,0.000267,9]
[364847150,1749274241804,-218.42161716,0.000267,2]
[364847151,1749274241814,-150.98544314,0.00026712,30]
[364847152,1749274241824,-150.0,0.00026724,2]
[364847153,1749274241835,-150.0,0.00026731,2]
[364847154,1749274241844,-295.37822589,0.00026766,2]
[364847155,1749274241854,-410.68248293,0.00026767,30]
[364847156,1749274241864,-2690.75581076,0.00026768,2]
[364847157,1749274241874,-176.96,0.00026773,2]
[364847158,1749274241885,-2690.75581076,0.0002679,2]
[364847159,1749274241895,-176.0067784,0.00026795,30]
[364847160,1749274241905,-1000.0,0.000268,2]
[364847161,1749274241915,-4200.0,0.000268,9]
[364847162,1749274241925,-152.3,0.0002682,2]
[364847163,1749274241935,-150.0,0.00026822,2]
[364847164,1749274241945,-21526.0464861,0.00026829,2]
[364847165,1749274241955,-1354.1457,0.0002684,2]
[364847166,1749274241965,-227.6646,0.0002684,2]
[364847167,1749274241975,-166.008992,0.00026842,7]
[364847168,1749274241984,-230.33985,0.00026842,7]
[364847169,1749274241994,-151.0,0.00026842,7]
[364847170,1749274242003,-151.0,0.00026842,7]
[364847171,1749274242013,-151.0,0.00026842,7]
[364847172,1749274242023,-151.0,0.00026842,7]
[364847173,1749274242033,-151.0,0.00026842,7]
[364847174,1749274242044,-350.109708,0.00026842,7]
[364847175,1749274242054,-350.109708,0.00026842,7]
[364847176,1749274242064,-500.0,0.00026842,2]
[364847177,1749274242074,-3342.368,0.00026842,2]
[364847178,1749274242083,-1000.0,0.00026848,2]
[364847179,1749274242093,-155.573485,0.00026849,6]
[364847180,1749274242103,-200.559063,0.0002685,7]
[364847181,1749274242112,-119044.039,0.0002685,2]
[364847182,1749274242122,-5000.0,0.00026852,2]
[364847183,1749274242132,-1000.0,0.00026861,2]
[364847184,1749274242142,-150.0,0.00026862,2]
[364847185,1749274242152,-11731.65577306,0.00026867,2]
[364847186,1749274242162,-502.88261495,0.00026873,2]
[364847187,1749274242172,-502.5372634,0.00026873,2]
[364847188,1749274242183,-159.81792377,0.00026873,2]
[364847189,1749274242193,-150.98544314,0.00026877,30]
[364847190,1749274242204,-158.46912684,0.00026877,30]
[364847191,1749274242214,-410.68248293,0.00026877,30]
[364847192,1749274242224,-150.0,0.00026878,2]
[364847193,1749274242234,-150.0,0.00026884,2]
[364847194,1749274242245,-5300.0,0.000269,9]
[364847195,1749274242254,-1000.0,0.000269,2]
[364847196,1749274242263,-157.66334026,0.000269,2]
[364847197,1749274242274,-157.66334024,0.000269,2]
[364847198,1749274242283,-157.66334024,0.000269,2]
[364847199,1749274242293,-157.66334024,0.000269,2]
[364847200,1749274242303,-157.66334024,0.000269,2]
[364847201,1749274242313,-176.0067784,0.00026904,30]
[364847202,1749274242323,-150.0,0.00026905,2]
[364847203,1749274242334,-150.0,0.00026928,2]
[364847204,1749274242344,-40749.1131721,0.00026934,2]
[364847205,1749274242353,-350.0,0.00026934,2]
[364847206,1749274242363,-300.0,0.00026941,10]
[364847207,1749274242373,-300.0,0.00026941,10]
[364847208,1749274242383,-151.0,0.00026942,7]
[364847209,1749274242393,-222.13349,0.00026942,7]
[364847210,1749274242403,-222.13349,0.00026942,7]
[364847211,1749274242413,-1554.807314,0.00026942,7]
[364847212,1749274242423,-1554.807314,0.00026942,7]
[364847213,1749274242433,-603.389432,0.00026942,7]
[364847214,1749274242443,-645.346851,0.00026942,7]
[364847215,1749274242453,-603.389432,0.00026942,7]
[364847216,1749274242463,-493.964404,0.00026942,7]
[364847217,1749274242473,-493.964404,0.00026942,7]
[364847218,1749274242483,-151.0,0.00026942,7]
[364847219,1749274242492,-645.346851,0.00026942,7]